fUST/lending_fUST_20260104
["ID","MTS","AMOUNT","RATE_DAILY","PERIOD"]
[400402716,1767514453452,-169.30090007,0.00011291,2]
[400402717,1767514453540,-522.98876649,0.00011291,2]
[400402718,1767514453746,-500.0,0.00011291,2]
[400402719,1767514453837,-522.98876649,0.00011291,2]
[400402720,1767514453925,-531.03474752,0.00011291,2]
[400402721,1767514454013,-531.03474752,0.00011291,2]
[400402722,1767514454102,-531.03474752,0.00011291,2]
[400402723,1767514454191,-531.03474752,0.00011291,2]
[400402724,1767514454278,-531.03474752,0.00011291,2]
[400402725,1767514454370,-128.07091118,0.00011291,2]
[400402726,1767514455648,-402.96383634,0.00011291,2]
[400402727,1767514460390,-10000.01,0.0001129,2]
[400402728,1767514469400,10000.0,0.0001103,2]
[400402729,1767514486902,0.01,7.364e-05,2]
[400402730,1767514486991,165.49,7.364e-05,2]
[400402731,1767514487311,198.61,7.659e-05,2]
[400402732,1767514487726,231.71,7.953e-05,2]
[400402733,1767514488180,264.81,8.248e-05,2]
[400402734,1767514488610,297.91,8.543e-05,2]
[400402735,1767514489015,331.01,8.837e-05,2]
[400402736,1767514494088,931.70194005,0.0001121,2]
[400402764,1767514652166,3618.51510457,0.0001121,2]
[400402857,1767514815464,1905.91036233,0.000112,2]
[400402976,1767514903276,191.201,0.00011066,2]
[400402983,1767514907212,-151.0,0.00011285,2]
[400402984,1767514907309,-269.42496473,0.00011285,2]
[400402985,1767514907414,-300.0,0.00011287,2]
[400402986,1767514907519,-1200.0,0.00011287,2]
[400402987,1767514907627,-300.0,0.00011287,2]
[400402992,1767514915909,-7493.51266359,0.00011288,2]
[400402993,1767514916501,-10000.01,0.00011288,2]
[400403008,1767514943654,1000.0,0.0003,120]
[400403009,1767514947701,-1250.19,0.0001121,2]
[400403016,1767515000856,-500.0,0.00011287,2]
[400403017,1767515000936,-500.0,0.00011287,2]
[400403018,1767515001027,-500.0,0.00011287,2]
[400403019,1767515001119,-500.0,0.00011287,2]
[400403020,1767515001230,-500.0,0.00011287,2]
[400403021,1767515001332,-334.33252355,0.00011287,2]
[400403022,1767515001443,-500.0,0.00011287,2]
[400403023,1767515001536,-500.0,0.00011287,2]
[400403024,1767515001626,-500.0,0.00011287,2]
[400403025,1767515001713,-500.0,0.00011287,2]
[400403026,1767515002477,-500.0,0.00011287,2]
[400403027,1767515002580,-500.0,0.00011287,2]
[400403028,1767515002686,-500.0,0.00011287,2]
[400403029,1767515002774,-500.0,0.00011287,2]
[400403030,1767515002880,-500.0,0.00011287,2]
[400403031,1767515002976,-628.8742528,0.00011287,2]
[400403032,1767515003087,-500.0,0.00011287,2]
[400403033,1767515003195,-500.0,0.00011287,2]
[400403034,1767515003294,-500.0,0.00011287,2]
[400403035,1767515003398,-242.2614944,0.00011287,2]
[400403037,1767515003999,-257.7385056,0.00011287,2]
[400403038,1767515004103,-500.0,0.00011287,2]
[400403039,1767515004194,-500.0,0.00011287,2]
[400403040,1767515004290,-500.0,0.00011287,2]
[400403041,1767515004393,-500.0,0.00011287,2]
[400403042,1767515004494,-187.15164228,0.00011287,2]
[400403043,1767515004606,-500.0,0.00011287,2]
[400403044,1767515004712,-500.0,0.00011287,2]
[400403045,1767515004808,-500.0,0.00011287,2]
[400403046,1767515004916,-500.0,0.00011287,2]
[400403047,1767515005016,-500.0,0.00011287,2]
[400403048,1767515005398,-322.67676908,0.00011287,2]
[400403049,1767515005491,-499.99999999,0.00011287,2]
[400403050,1767515007999,-199.31316275,0.00011288,2]
[400403051,1767515008090,-499.99999999,0.00011288,2]
[400403052,1767515008175,-8354.65646186,0.00011288,2]
[400403053,1767515008266,-10000.01,0.00011288,2]
[400403054,1767515008392,-3452.48771181,0.00011288,2]
[400403055,1767515008402,-465.02595716,0.00011291,2]
[400403056,1767515008413,-500.0,0.00011291,2]
[400403057,1767515008422,-511.47799184,0.00011291,2]
[400403058,1767515008432,-500.0,0.00011291,2]
[400403059,1767515008441,-500.0,0.00011291,2]
[400403060,1767515008450,-500.0,0.00011291,2]
[400403061,1767515008460,-500.0,0.00011291,2]
[400403062,1767515008469,-500.0,0.00011291,2]
[400403063,1767515008479,-500.0,0.00011291,2]
[400403064,1767515008489,-500.0,0.00011291,2]
[400403065,1767515008498,-500.0,0.00011291,2]
[400403066,1767515008508,-534.0551253,0.00011291,2]
[400403067,1767515008517,-500.0,0.00011291,2]
[400403068,1767515008527,-36.96321389,0.00011291,2]
[400403069,1767515008619,-463.03678611,0.00011291,2]
[400403070,1767515008628,-500.0,0.00011291,2]
[400403071,1767515008637,-500.0,0.00011291,2]
[400403072,1767515008647,-500.0,0.00011291,2]
[400403073,1767515008657,-500.0,0.00011291,2]
[400403074,1767515008666,-500.0,0.00011291,2]
[400403075,1767515008675,-500.0,0.00011291,2]
[400403076,1767515008684,-500.0,0.00011291,2]
[400403077,1767515008693,-500.0,0.00011291,2]
[400403078,1767515008703,-500.0,0.00011291,2]
[400403079,1767515008712,-500.0,0.00011291,2]
[400403080,1767515008722,-332.15157631,0.00011291,2]
[400403081,1767515008731,-500.0,0.00011291,2]
[400403082,1767515008741,-250.0,0.00011291,2]
[400403083,1767515008751,-3454.82163758,0.00011292,2]
[400403084,1767515008836,-10000.01,0.00011292,2]
[400403085,1767515008925,-10000.01,0.00011292,2]
[400403086,1767515013302,-10000.01,0.00011292,2]
[400403087,1767515013550,-10000.01,0.00011292,2]
[400403088,1767515013803,-10000.01,0.00011292,2]
[400403089,1767515014138,-10000.01,0.00011292,2]
[400403090,1767515014485,-10000.01,0.00011292,2]
[400403091,1767515014744,-10000.01,0.00011292,2]
[400403092,1767515014987,-10000.01,0.00011292,2]
[400403093,1767515041927,5000.0,0.00011212,2]
[400403097,1767515085754,207.11,6.468e-05,2]
[400403098,1767515086177,310.67,6.762e-05,2]
[400403099,1767515086661,414.22,7.056e-05,2]
[400403100,1767515087143,517.78,7.35e-05,2]
[400403101,1767515087562,621.33,7.644e-05,2]
[400403102,1767515087960,724.89,7.938e-05,2]
[400403103,1767515088400,828.44,8.232e-05,2]
[400403104,1767515088828,932.0,8.526e-05,2]
[400403105,1767515089233,443.57,8.82e-05,2]
[400403106,1767515089266,591.98,8.82e-05,2]
[400403108,1767515116235,153.39239077,0.00030137,120]
[400403152,1767515161317,168.64,6.733e-05,2]
[400403154,1767515161722,252.96,7.039e-05,2]
[400403155,1767515162134,337.28,7.345e-05,2]
[400403156,1767515162548,421.6,7.651e-05,2]
[400403158,1767515162942,505.92,7.957e-05,2]
[400403159,1767515163937,590.24,8.263e-05,2]
[400403160,1767515164359,674.56,8.569e-05,2]
[400403161,1767515164825,758.88,8.876e-05,2]
[400403162,1767515165238,843.2,9.182e-05,2]
[400403163,1767515169562,-300.0,0.0001129,2]
[400403164,1767515169601,-591.4085299,0.00011291,2]
[400403165,1767515169639,-465.23907137,0.00011291,2]
[400403166,1767515169676,-180.98602809,0.00011291,2]
[400403167,1767515169711,-370.48139151,0.00011291,2]
[400403168,1767515169747,-300.0,0.00011291,2]
[400403169,1767515169783,-1200.0,0.00011291,2]
[400403191,1767515201140,-420.87894256,0.00011291,2]
[400403192,1767515201183,-500.0,0.00011291,2]
[400403193,1767515201219,-356.09043501,0.00011291,2]
[400403194,1767515201255,-180.42267,0.00011291,2]
[400403195,1767515201295,-500.0,0.00011291,2]
[400403196,1767515201335,-265.0,0.00011291,2]
[400403197,1767515201386,-515.34849972,0.00011291,2]
[400403198,1767515209923,-2603.72979231,0.00011292,2]
[400403203,1767515215234,-10000.01,0.00011292,2]
[400403209,1767515225397,914.58238688,0.00011122,2]
[400403211,1767515239072,165.79,7.573e-05,2]
[400403212,1767515239429,221.05,7.902e-05,2]
[400403213,1767515239841,276.32,8.232e-05,2]
[400403214,1767515240267,331.58,8.561e-05,2]
[400403215,1767515241121,386.84,8.89e-05,2]
[400403216,1767515241550,442.11,9.219e-05,2]
[400403217,1767515241957,497.37,9.549e-05,2]
[400403218,1767515242354,552.63,9.878e-05,2]
[400403238,1767515270117,1365.2142283,0.00010959,2]
[400403247,1767515305194,360.02434068,0.0002,120]
[400403255,1767515313090,168.2,9.452e-05,2]
[400403261,1767515317187,2918.16469788,0.0001,2]
[400403263,1767515325392,217.1344286,0.00010493,2]
[400403267,1767515335076,452.4012345,0.0003,120]
[400403269,1767515354648,-2565.86425829,0.00011179,2]
[400403270,1767515355059,-6411.30574176,0.00011192,2]
[400403271,1767515355369,-10000.01,0.00011192,2]
[400403272,1767515355508,-10000.01,0.00011192,2]
[400403273,1767515360688,-10000.0,0.00011192,2]
[400403274,1767515361325,-10000.01,0.00011192,2]
[400403275,1767515366435,-2000.0,0.00011192,2]
[400403276,1767515372951,452.4012345,0.0003,120]
[400403277,1767515376314,1975.91459835,0.00011042,2]
[400403278,1767515386902,161.87,0.0001,2]
[400403279,1767515388834,161.87,0.000102,2]
[400403280,1767515390776,161.87,0.000104,2]
[400403281,1767515392688,161.87,0.000106,2]
[400403282,1767515394675,161.87,0.000108,2]
[400403290,1767515413075,394.43399609,0.0003,120]
[400403327,1767515431737,-300.0,0.00011191,2]
[400403328,1767515431747,-266.01779613,0.00011191,2]
[400403329,1767515431759,-33.98220387,0.00011191,2]
[400403330,1767515431769,-300.0,0.00011191,2]
[400403331,1767515431778,-1200.0,0.00011191,2]
[400403332,1767515431788,-245.02289796,0.00011192,2]
[400403333,1767515431799,-825.0,0.00011192,2]
[400403334,1767515431810,-12188.99085826,0.00011192,2]
[400403381,1767515438147,-452.00154628,0.00011191,2]
[400403382,1767515438156,-500.0,0.00011191,2]
[400403384,1767515438166,-500.0,0.00011191,2]
[400403385,1767515438175,-500.0,0.00011191,2]
[400403386,1767515438185,-500.0,0.00011191,2]
[400403387,1767515438194,-500.0,0.00011191,2]
[400403388,1767515438204,-500.0,0.00011191,2]
[400403390,1767515438214,-500.0,0.00011191,2]
[400403391,1767515438223,-398.62493358,0.00011191,2]
[400403392,1767515438233,-500.0,0.00011191,2]
[400403393,1767515438243,-500.0,0.00011191,2]
[400403395,1767515438252,-498.1321831,0.00011191,2]
[400403396,1767515438264,-1.8678169,0.00011191,2]
[400403397,1767515438273,-594.08127312,0.00011191,2]
[400403398,1767515438283,-17101.70849471,0.00011192,2]
[400403400,1767515438294,-4391.23581549,0.00011192,2]
[400403401,1767515438305,-529.46489486,0.00011192,2]
[400403402,1767515438317,-3273.7658283,0.00011192,2]
[400403403,1767515438329,-960.88302587,0.00011192,2]
[400403405,1767515438352,-1888.3931287,0.00011192,2]
[400403441,1767515440063,-1572.04116636,0.00011192,2]
[400403454,1767515445206,-500.0,0.00011192,2]
[400403471,1767515445940,-461.02753643,0.00011192,2]
[400403472,1767515446122,-604.017359,0.00011192,2]
[400403539,1767515481239,226.20061725,0.0003,120]
[400403550,1767515511873,150.3,7.647e-05,2]
[400403551,1767515512310,171.77,7.93e-05,2]
[400403552,1767515512727,193.24,8.213e-05,2]
[400403553,1767515513140,214.71,8.496e-05,2]
[400403631,1767515560133,155.0,9e-05,2]
[400403632,1767515566485,266.69,0.0001,2]
[400403633,1767515568453,266.69,0.000102,2]
[400403634,1767515570363,266.69,0.000104,2]
[400403635,1767515572252,266.69,0.000106,2]
[400403648,1767515574466,266.69,0.000108,2]
[400403656,1767515576376,266.69,0.00011,2]
[400403707,1767515603434,-300.0,0.0001119,2]
[400403708,1767515603470,-431.0,0.0001119,2]
[400403709,1767515603508,-500.0,0.00011191,2]
[400403710,1767515603543,-500.0,0.00011191,2]
[400403711,1767515603580,-500.0,0.00011191,2]
[400403712,1767515603617,-500.0,0.00011191,2]
[400403713,1767515603655,-500.0,0.00011191,2]
[400403714,1767515603690,-500.0,0.00011191,2]
[400403715,1767515603726,-500.0,0.00011191,2]
[400403716,1767515603761,-500.0,0.00011191,2]
[400403717,1767515604017,-550.0,0.00011191,2]
[400403718,1767515604177,-500.0,0.00011191,2]
[400403719,1767515604209,-500.0,0.00011191,2]
[400403720,1767515604260,-341.5466958,0.00011191,2]
[400403721,1767515604298,-500.0,0.00011191,2]
[400403722,1767515604340,-500.0,0.00011191,2]
[400403723,1767515604380,-500.0,0.00011191,2]
[400403724,1767515604422,-500.0,0.00011191,2]
[400403725,1767515604460,-500.0,0.00011191,2]
[400403726,1767515604500,-500.0,0.00011191,2]
[400403727,1767515604738,-500.0,0.00011191,2]
[400403728,1767515604775,-500.0,0.00011191,2]
[400403729,1767515604808,-500.0,0.00011191,2]
[400403730,1767515604842,-500.0,0.00011191,2]
[400403731,1767515604877,-500.0,0.00011191,2]
[400403732,1767515604912,-500.0,0.00011191,2]
[400403733,1767515604947,-500.0,0.00011191,2]
[400403734,1767515604981,-500.0,0.00011191,2]
[400403735,1767515605015,-500.0,0.00011191,2]
[400403736,1767515605049,-500.0,0.00011191,2]
[400403738,1767515605153,-500.0,0.00011191,2]
[400403739,1767515605188,-500.0,0.00011191,2]
[400403740,1767515605221,-500.0,0.00011191,2]
[400403741,1767515605255,-500.0,0.00011191,2]
[400403742,1767515605289,-500.0,0.00011191,2]
[400403743,1767515605322,-399.01812478,0.00011191,2]
[400403744,1767515605356,-500.0,0.00011191,2]
[400403745,1767515605387,-500.0,0.00011191,2]
[400403746,1767515605420,-500.0,0.00011191,2]
[400403747,1767515605454,-500.0,0.00011191,2]
[400403748,1767515605570,495.6797629,0.00010935,2]
[400403749,1767515605619,-500.0,0.00011191,2]
[400403750,1767515605651,-500.0,0.00011191,2]
[400403751,1767515605683,-252.92479702,0.00011191,2]
[400403752,1767515606743,-2741.0110019,0.00011192,2]
[400403753,1767515606782,-10000.01,0.00011192,2]
[400403754,1767515606797,-10000.01,0.00011192,2]
[400403755,1767515606817,-10000.01,0.00011192,2]
[400403756,1767515606839,-10000.01,0.00011192,2]
[400403764,1767515614384,-10000.01,0.00011192,2]
[400403765,1767515614580,-10000.01,0.00011192,2]
[400403766,1767515614845,-10000.01,0.00011192,2]
[400403769,1767515628936,-10000.01,0.00011192,2]
[400403770,1767515629212,-10000.01,0.00011192,2]
[400403771,1767515629448,-10000.01,0.00011192,2]
[400403779,1767515643781,160.25,7.121e-05,2]
[400403782,1767515644231,213.67,7.43e-05,2]
[400403783,1767515644647,267.09,7.74e-05,2]
[400403784,1767515645112,320.51,8.05e-05,2]
[400403785,1767515645997,373.93,8.359e-05,2]
[400403786,1767515646441,427.35,8.669e-05,2]
[400403787,1767515646866,480.76,8.978e-05,2]
[400403788,1767515647269,534.18,9.288e-05,2]
[400403798,1767515659780,1993.01644157,0.00011041,2]
[400403814,1767515683879,669.77,0.00011041,2]
[400403816,1767515698864,-300.0,0.00011191,2]
[400403817,1767515698896,-356.31123968,0.00011191,2]
[400403818,1767515699006,-5490.42107907,0.00011192,2]
[400403819,1767515699072,-10000.01,0.00011192,2]
[400403820,1767515699257,-10000.01,0.00011192,2]
[400403821,1767515699379,-10000.01,0.00011192,2]
[400403830,1767515708196,-2923.98694645,0.00011192,2]
[400403831,1767515708222,-4152.0361071,0.00011192,2]
[400403877,1767515715577,204.5498734,0.00010962,2]
[400403878,1767515716136,177.91,7.324e-05,2]
[400403880,1767515716570,237.21,7.642e-05,2]
[400403881,1767515716983,296.52,7.96e-05,2]
[400403882,1767515717386,355.82,8.279e-05,2]
[400403883,1767515717790,-1200.0,0.00011208,2]
[400403884,1767515717851,415.12,8.597e-05,2]
[400403885,1767515718257,474.43,8.916e-05,2]
[400403886,1767515718672,533.73,9.234e-05,2]
[400403887,1767515719073,593.03,9.552e-05,2]
[400403927,1767515722258,2480.42667035,0.00011208,2]
[400403928,1767515727102,500.0,0.00030136,120]
[400403949,1767515730497,3103.27332965,0.00011208,2]
[400403950,1767515730523,1896.72667035,0.00011208,2]
[400403951,1767515739874,-999.0,0.00011209,2]
[400403952,1767515740916,2035.80555525,0.0003,120]
[400403956,1767515751224,500.0,0.00011191,2]
[400403958,1767515751884,500.0,0.00011191,2]
[400403959,1767515752266,500.0,0.00011191,2]
[400403960,1767515752435,300.0,0.00011191,2]
[400403962,1767515753941,5000.0,0.00011209,2]
[400403965,1767515755011,-151.0,0.000113,2]
[400403975,1767515765263,168.23337884,0.0003,120]
[400404006,1767515789395,160.44,8.595e-05,2]
[400404007,1767515789853,180.5,8.902e-05,2]
[400404008,1767515790352,184.8216757,9.209e-05,2]
[400404010,1767515818952,500.0,0.00011191,2]
[400404012,1767515819008,283.83037022,0.00011191,2]
[400404016,1767515824024,500.0,0.00011191,2]
[400404017,1767515824056,500.0,0.00011191,2]
[400404018,1767515824108,500.0,0.00011191,2]
[400404019,1767515824218,254.96216516,0.00011191,2]
[400404020,1767515824521,500.0,0.00011191,2]
[400404029,1767515861148,596.352012,0.0003,120]
[400404033,1767515922891,12406.43507612,0.0003,120]
[400404095,1767516123132,207.15357246,0.0001128,2]
[400404147,1767516184710,4330.23,0.00011487,2]
[400404148,1767516194928,5462.62642754,0.00011192,2]
[400404149,1767516195064,5365.16853796,0.00011192,2]
[400404152,1767516196601,2289.90470151,0.00011197,2]
[400404156,1767516244711,-1200.0,0.00011616,2]
[400404157,1767516244732,-583.0,0.00011617,2]
[400404158,1767516244753,-300.0,0.00011628,2]
[400404159,1767516244786,-349.18501489,0.00011734,2]
[400404160,1767516244813,-300.0,0.00011846,2]
[400404161,1767516244836,-300.0,0.00011846,2]
[400404162,1767516244861,-300.0,0.00011847,2]
[400404163,1767516244885,-300.0,0.00011847,2]
[400404164,1767516244909,-300.0,0.00011847,2]
[400404165,1767516244932,-300.0,0.00011847,2]
[400404166,1767516244956,-300.0,0.00011847,2]
[400404167,1767516244981,-300.0,0.00011847,2]
[400404168,1767516245007,-300.0,0.00011847,2]
[400404169,1767516245031,-300.0,0.00011847,2]
[400404170,1767516245054,-300.0,0.00011847,2]
[400404171,1767516245079,-300.0,0.00011847,2]
[400404172,1767516245105,-300.0,0.00011847,2]
[400404173,1767516245131,-300.0,0.00011847,2]
[400404174,1767516245156,-300.0,0.00011847,2]
[400404175,1767516245180,-300.0,0.00011847,2]
[400404176,1767516245206,-300.0,0.00011847,2]
[400404177,1767516245230,-600.0,0.00011847,2]
[400404178,1767516245252,-1867.81498511,0.00011847,2]
[400404252,1767516540942,10000.0,0.00011227,2]
[400404259,1767516581211,0.01,0.0001123,2]
[400404260,1767516581234,1153.6834582,0.0001123,2]
[400404262,1767516602884,25914.66160621,0.0003,120]
[400404263,1767516611662,240.26165109,0.0003,120]
[400404296,1767516631839,-342.20131459,0.000121,2]
[400404298,1767516631850,-1093.07100375,0.00012184,2]
[400404300,1767516631862,-1053.25776006,0.00012184,2]
[400404302,1767516631872,-300.0,0.00012225,2]
[400404303,1767516631881,-1200.0,0.00012225,2]
[400404304,1767516631891,-2402.38751051,0.00012226,2]
[400404305,1767516631901,-153.108,0.00012227,2]
[400404306,1767516631911,-500.0,0.00012228,2]
[400404307,1767516631921,-500.0,0.00012228,2]
[400404308,1767516631930,-500.0,0.00012228,2]
[400404309,1767516631940,-500.0,0.00012228,2]
[400404310,1767516631949,-484.33046329,0.00012228,2]
[400404311,1767516631959,-500.0,0.00012228,2]
[400404312,1767516631968,-500.0,0.00012228,2]
[400404313,1767516631977,-500.0,0.00012228,2]
[400404314,1767516631988,-500.0,0.00012228,2]
[400404315,1767516631997,-500.0,0.00012228,2]
[400404316,1767516632008,-500.0,0.00012228,2]
[400404317,1767516632018,-210.4520854,0.00012228,2]
[400404318,1767516632027,-500.0,0.00012228,2]
[400404319,1767516632037,-500.0,0.00012228,2]
[400404320,1767516632046,-500.0,0.00012228,2]
[400404321,1767516632055,-500.0,0.00012228,2]
[400404322,1767516632065,-500.0,0.00012228,2]
[400404323,1767516632074,-500.0,0.00012228,2]
[400404324,1767516632084,-500.0,0.00012228,2]
[400404325,1767516632093,-486.76457492,0.00012228,2]
[400404326,1767516632103,-616881.21162731,0.00012229,2]
[400404327,1767516632115,-2303.34546037,0.00012229,2]
[400404342,1767516637869,-250.55135168,0.00012227,2]
[400404343,1767516637879,-500.0,0.00012227,2]
[400404344,1767516637889,-500.0,0.00012227,2]
[400404345,1767516637898,-500.0,0.00012227,2]
[400404346,1767516637908,-500.0,0.00012227,2]
[400404347,1767516637918,-399.39607552,0.00012227,2]
[400404348,1767516637927,-556.05844043,0.00012227,2]
[400404349,1767516637937,-437.13832047,0.00012227,2]
[400404350,1767516637949,-62.86167953,0.00012227,2]
[400404351,1767516637959,-500.0,0.00012227,2]
[400404352,1767516637968,-338.79247932,0.00012227,2]
[400404353,1767516637980,-500.0,0.00012227,2]
[400404354,1767516637991,-500.0,0.00012227,2]
[400404355,1767516638003,-500.0,0.00012227,2]
[400404356,1767516638017,-500.0,0.00012227,2]
[400404357,1767516638028,-500.0,0.00012227,2]
[400404358,1767516638039,-500.0,0.00012227,2]
[400404360,1767516638052,-500.0,0.00012227,2]
[400404362,1767516638063,-500.0,0.00012227,2]
[400404364,1767516638073,-500.0,0.00012227,2]
[400404365,1767516638084,-500.0,0.00012227,2]
[400404366,1767516638094,-500.0,0.00012227,2]
[400404367,1767516638108,-500.0,0.00012227,2]
[400404368,1767516638119,-241.72732433,0.00012227,2]
[400404369,1767516638130,-500.0,0.00012227,2]
[400404370,1767516638140,-500.0,0.00012227,2]
[400404371,1767516638153,-500.0,0.00012227,2]
[400404373,1767516638163,-500.0,0.00012227,2]
[400404375,1767516638173,-500.0,0.00012227,2]
[400404376,1767516638183,-380815.44291232,0.00012229,2]
[400404377,1767516638193,-2289.90470151,0.00012324,2]
[400404378,1767516638203,-500.0,0.00012328,2]
[400404379,1767516638213,-500.0,0.00012328,2]
[400404380,1767516638223,-500.0,0.00012328,2]
[400404381,1767516638233,-615.38121499,0.00012329,2]
[400404382,1767516638242,-250.0,0.0001245,2]
[400404383,1767516638255,-250.0,0.0001245,2]
[400404384,1767516638265,-250.0,0.0001245,2]
[400404385,1767516638275,-250.0,0.0001245,2]
[400404386,1767516638284,-553.64373807,0.0001245,2]
[400404387,1767516638294,-250.0,0.0001245,2]
[400404388,1767516638303,-250.0,0.0001245,2]
[400404389,1767516638313,-250.0,0.0001245,2]
[400404390,1767516638324,-250.0,0.0001245,2]
[400404391,1767516638334,-250.0,0.0001245,2]
[400404392,1767516638344,-250.0,0.0001245,2]
[400404393,1767516638354,-250.0,0.0001245,2]
[400404394,1767516638364,-2674.60743027,0.0001245,2]
[400404395,1767516638374,-300.0,0.0001247,2]
[400404396,1767516638384,-300.0,0.0001247,2]
[400404397,1767516638395,-300.0,0.0001247,2]
[400404398,1767516638404,-300.0,0.0001247,2]
[400404399,1767516638414,-300.0,0.0001247,2]
[400404400,1767516638428,-300.0,0.0001247,2]
[400404401,1767516638438,-300.0,0.0001247,2]
[400404402,1767516638451,-300.0,0.0001247,2]
[400404403,1767516638460,-300.0,0.0001247,2]
[400404404,1767516638470,-300.0,0.0001247,2]
[400404405,1767516638480,-300.0,0.0001247,2]
[400404406,1767516638489,-300.0,0.0001247,2]
[400404407,1767516638499,-300.0,0.0001247,2]
[400404408,1767516638511,-300.0,0.0001247,2]
[400404409,1767516638520,-300.0,0.0001247,2]
[400404410,1767516638530,-600.0,0.0001247,2]
[400404411,1767516638541,-2416.0076247,0.0001262,2]
[400404412,1767516638551,-54949.91503433,0.0001287,2]
[400404413,1767516638878,-500.0,0.00012227,2]
[400404414,1767516638889,-500.0,0.00012227,2]
[400404415,1767516638900,-196.9605039,0.0001287,2]
[400404425,1767516640341,-28.49777909,0.00012227,2]
[400404510,1767516762111,10000.01,0.00011152,2]
[400404511,1767516762133,10000.01,0.00011152,2]
[400404512,1767516762154,5732.8746572,0.00011152,2]
[400404515,1767516826709,197.69,0.0001,2]
[400404580,1767517156554,-159.27050405,0.00011852,2]
[400404581,1767517156576,-264.3735124,0.00011852,2]
[400404582,1767517156599,-153.108,0.00011885,2]
[400404583,1767517156621,-338.3572883,0.0001192,2]
[400404584,1767517156641,-225.75054393,0.00011954,2]
[400404585,1767517156662,-500.0,0.00011954,2]
[400404586,1767517156682,-500.0,0.00011954,2]
[400404587,1767517156702,-155.17137899,0.0001199,2]
[400404593,1767517227575,300.0,0.00011212,2]
[400404770,1767517382087,-1227.4690248,0.00011212,2]
[400404771,1767517382111,-331.59014253,0.00011651,2]
[400404778,1767517447375,10000.01,0.00011121,2]
[400404779,1767517447400,10000.01,0.00011121,2]
[400404780,1767517447423,1805.031955,0.00011121,2]
[400404842,1767517669909,-273.89332638,0.0001166,2]
[400404843,1767517669933,-350.95004616,0.0001166,2]
[400404848,1767517674539,-392.3009956,0.0001166,2]
[400404851,1767517676646,-230.26790519,0.0001166,2]
[400404852,1767517679630,-122.05435855,0.0001166,2]
[400404853,1767517679654,-62.56532224,0.0001166,2]
[400404857,1767517683185,-300.0,0.00011659,2]
[400404858,1767517683218,-53.27021086,0.0001166,2]
[400404859,1767517685174,-366.10603496,0.0001166,2]
[400404861,1767517686627,-516.71581332,0.0001166,2]
[400404863,1767517688673,-300.0,0.0001166,2]
[400404865,1767517691328,-277.39278668,0.0001166,2]
[400404867,1767517693276,-339.19355815,0.0001166,2]
[400404871,1767517695702,-250.4574325,0.0001166,2]
[400404872,1767517697168,-299.33877867,0.0001166,2]
[400404873,1767517697191,-190.59383662,0.0001166,2]
[400404876,1767517709452,8194.978045,0.0001,2]
[400404877,1767517709475,10000.01,0.0001,2]
[400404878,1767517709497,10000.01,0.0001,2]
[400404879,1767517709519,10000.01,0.0001,2]
[400404880,1767517709541,10000.01,0.0001,2]
[400404881,1767517709564,10000.01,0.0001,2]